[Event "FIDE Women World Blitz 2021"]
[Site "Warsaw"]
[Date "2021.12.30"]
[Round "15.2"]
[White "Nurgali, Nazerke"]
[Black "Strutinskaia, Galina"]
[Result "1-0"]
[ECO "E10"]
[WhiteElo "2267"]
[BlackElo "2188"]
[Annotator "NA"]
[PlyCount "77"]
[EventDate "2021.12.29"]
[EventType "swiss"]
[EventCountry "POL"]
[Tiebreak "Cut1 Buchholz"]
[SourceTitle "playchess.com"]
[Source "ChessBase"]
[SourceQuality "1"]
[TimeControl "180+2"]

1. d4 {[%emt 0:00:01]} e6 {[%emt 0:00:01]} 2. Nf3 {[%emt 0:00:02]} Nf6 {
[%emt 0:00:02]} 3. c4 {[%emt 0:00:01]} c5 {[%emt 0:00:00]} 4. d5 {[%emt 0:00:
02]} b5 {[%emt 0:00:01]} 5. dxe6 {[%emt 0:00:01]} fxe6 {[%emt 0:00:01]} 6. cxb5
{[%emt 0:00:02]} d5 {[%emt 0:00:01]} 7. e3 {[%emt 0:00:03]} Bd6 {[%emt 0:00:04]
} 8. Be2 {[%emt 0:00:03]} O-O {[%emt 0:00:02]} 9. O-O {[%emt 0:00:05]} a6 {
[%emt 0:00:00]} 10. bxa6 {[%emt 0:00:13]} Nxa6 {[%emt 0:00:02]} 11. b3 {
[%emt 0:00:07]} Bb7 {[%emt 0:00:05]} 12. Bb2 {[%emt 0:00:02]} Nb4 {[%emt 0:00:
02]} 13. Nc3 {[%emt 0:00:07]} Qe7 {[%emt 0:00:04]} 14. a3 {[%emt 0:00:11]} Nc6
{[%emt 0:00:01]} 15. Nb5 {[%emt 0:00:04]} Bb8 {[%emt 0:00:01]} 16. Rc1 {
[%emt 0:00:17]} Nd7 {[%emt 0:00:01]} 17. Qc2 {[%emt 0:00:08]} Ba6 {[%emt 0:00:
10]} 18. Rfd1 {[%emt 0:00:06]} Nd8 {[%emt 0:00:04]} 19. a4 {[%emt 0:00:07]} Nf7
{[%emt 0:00:05]} 20. Bd3 {[%emt 0:00:08]} h6 {[%emt 0:00:38]} 21. Ba3 {[%emt 0:
00:05]} Rc8 {[%emt 0:00:08]} 22. Qe2 {[%emt 0:00:05]} e5 {[%emt 0:00:08]} 23.
Bf5 {[%emt 0:00:07]} e4 {[%emt 0:00:02]} 24. Ne1 {[%emt 0:00:02]} Qe5 {[%emt 0:
00:12]} 25. Qh5 {[%emt 0:00:15]} Bxb5 {[%emt 0:00:06]} 26. axb5 {[%emt 0:00:19]
} Rxa3 {[%emt 0:00:01]} 27. Rxd5 {[%emt 0:00:01]} Qb2 {[%emt 0:00:16]} 28. Rdd1
{[%emt 0:00:12]} Nf6 {[%emt 0:00:04]} 29. Qg6 {[%emt 0:00:07]} Qe5 {[%emt 0:00:
02]} 30. Bxc8 {[%emt 0:00:07]} Qxh2+ {[%emt 0:00:02]} 31. Kf1 {[%emt 0:00:01]}
Qh1+ {[%emt 0:00:14]} 32. Ke2 {[%emt 0:00:01]} Ra2+ {[%emt 0:00:01]} 33. Rc2 {
[%emt 0:00:06]} Rxc2+ {[%emt 0:00:19]} 34. Nxc2 {[%emt 0:00:00]} Qh4 {[%emt 0:
00:07]} 35. Be6 {[%emt 0:00:04]} Qh5+ {[%emt 0:00:03]} 36. Qxh5 {[%emt 0:00:02]
} Nxh5 {[%emt 0:00:01]} 37. Rd7 {[%emt 0:00:05]} Kf8 {[%emt 0:00:05]} 38. Bxf7
{[%emt 0:00:03]} Nf6 {[%emt 0:00:02]} 39. Rd8+ {[%emt 0:00:02]} 1-0

[Event "FIDE Women World Blitz 2021"]
[Site "Warsaw"]
[Date "2021.12.30"]
[Round "15.3"]
[White "Abdumalik, Zhansaya"]
[Black "Koneru, Humpy"]
[Result "1/2-1/2"]
[ECO "C47"]
[WhiteElo "2507"]
[BlackElo "2586"]
[Annotator "ChessBase"]
[PlyCount "87"]
[EventDate "2021.12.29"]
[EventType "swiss"]
[EventCountry "POL"]
[Tiebreak "Cut1 Buchholz"]
[SourceTitle "playchess.com"]
[Source "ChessBase"]
[SourceQuality "1"]
[TimeControl "180+2"]

1. e4 {[%emt 0:00:02]} e5 {[%emt 0:00:01]} 2. Nf3 {[%emt 0:00:01]} Nc6 {
[%emt 0:00:01]} 3. d4 {[%emt 0:00:01]} exd4 {[%emt 0:00:03]} 4. Nxd4 {[%emt 0:
00:01]} Nf6 {[%emt 0:00:02]} 5. Nxc6 {[%emt 0:00:02]} bxc6 {[%emt 0:00:02]} 6.
Bd3 {[%emt 0:00:04]} d5 {[%emt 0:00:06]} 7. Nc3 {[%emt 0:00:03]} Bb4 {[%emt 0:
00:17]} 8. exd5 {[%emt 0:00:17]} cxd5 {[%emt 0:00:12]} 9. O-O {[%emt 0:00:06]}
O-O {[%emt 0:00:04]} 10. Bg5 {[%emt 0:00:04]} c6 {[%emt 0:00:05]} 11. Qf3 {
[%emt 0:00:06]} Be7 {[%emt 0:00:22]} 12. Rfe1 {[%emt 0:00:14]} Re8 {[%emt 0:00:
17]} 13. h3 {[%emt 0:00:04]} h6 {[%emt 0:00:05]} 14. Bf4 {[%emt 0:00:13]} Be6 {
[%emt 0:00:12]} 15. Ne2 {[%emt 0:00:06]} Bd6 {[%emt 0:00:30]} 16. Nd4 {[%emt 0:
00:05]} Bxf4 {[%emt 0:00:13]} 17. Nxe6 {[%emt 0:00:14]} fxe6 {[%emt 0:00:11]}
18. Qxf4 {[%emt 0:00:01]} Qb8 {[%emt 0:00:04]} 19. Qa4 {[%emt 0:00:23]} Qd6 {
[%emt 0:00:09]} 20. Bg6 {[%emt 0:00:05]} Re7 {[%emt 0:00:03]} 21. f4 {[%emt 0:
00:09]} Rb8 {[%emt 0:00:02]} 22. b3 {[%emt 0:00:48]} Nd7 {[%emt 0:00:01]} 23.
Rf1 {[%emt 0:00:08]} Nf8 {[%emt 0:00:19]} 24. Bd3 {[%emt 0:00:02]} Rb4 {
[%emt 0:00:03]} 25. Qa3 {[%emt 0:00:01]} c5 {[%emt 0:00:05]} 26. c3 {[%emt 0:
00:05]} Rxf4 {[%emt 0:00:04]} 27. Rxf4 {[%emt 0:00:01]} Qxf4 {[%emt 0:00:01]}
28. Qxc5 {[%emt 0:00:03]} Rc7 {[%emt 0:00:02]} 29. Qd4 {[%emt 0:00:12]} Qxd4+ {
[%emt 0:00:05]} 30. cxd4 {[%emt 0:00:01]} Rc3 {[%emt 0:00:01]} 31. Rd1 {
[%emt 0:00:01]} Kf7 {[%emt 0:00:03]} 32. Kf2 {[%emt 0:00:00]} e5 {[%emt 0:00:
02]} 33. dxe5 {[%emt 0:00:03]} Ke6 {[%emt 0:00:02]} 34. Ke2 {[%emt 0:00:03]}
Kxe5 {[%emt 0:00:02]} 35. Kd2 {[%emt 0:00:01]} Rc7 {[%emt 0:00:05]} 36. Re1+ {
[%emt 0:00:01]} Kd6 {[%emt 0:00:04]} 37. Bf5 {[%emt 0:00:02]} g6 {[%emt 0:00:
03]} 38. Bg4 {[%emt 0:00:01]} h5 {[%emt 0:00:00]} 39. Be2 {[%emt 0:00:03]} Ne6
{[%emt 0:00:02]} 40. Rf1 {[%emt 0:00:03]} Ke5 {[%emt 0:00:02]} 41. h4 {[%emt 0:
00:06]} Nc5 {[%emt 0:00:04]} 42. Bd3 {[%emt 0:00:10]} Ne4+ {[%emt 0:00:02]} 43.
Bxe4 {[%emt 0:00:03]} dxe4 {[%emt 0:00:02]} 44. Rf8 {[%emt 0:00:02]} 1/2-1/2

[Event "FIDE Women World Blitz 2021"]
[Site "Warsaw"]
[Date "2021.12.30"]
[Round "15.3"]
[White "Rakhmangulova, Anastasiya"]
[Black "Smietanska, Wiktoria"]
[Result "1-0"]
[ECO "B86"]
[WhiteElo "2174"]
[BlackElo "1765"]
[Annotator "NA"]
[PlyCount "69"]
[EventDate "2021.12.29"]
[EventType "swiss"]
[EventCountry "POL"]
[Tiebreak "Cut1 Buchholz"]
[SourceTitle "playchess.com"]
[Source "ChessBase"]
[SourceQuality "1"]
[TimeControl "180+2"]

1. e4 {[%emt 0:00:01]} c5 {[%emt 0:00:01]} 2. Nf3 {[%emt 0:00:01]} d6 {[%emt 0:
00:01]} 3. d4 {[%emt 0:00:00]} cxd4 {[%emt 0:00:01]} 4. Nxd4 {[%emt 0:00:01]}
Nf6 {[%emt 0:00:01]} 5. Nc3 {[%emt 0:00:01]} a6 {[%emt 0:00:00]} 6. Bc4 {
[%emt 0:00:01]} e6 {[%emt 0:00:01]} 7. Bb3 {[%emt 0:00:00]} Nbd7 {[%emt 0:00:
01]} 8. O-O {[%emt 0:00:02]} Nc5 {[%emt 0:00:02]} 9. Bg5 {[%emt 0:00:02]} Be7 {
[%emt 0:00:04]} 10. Qe2 {[%emt 0:00:01]} h6 {[%emt 0:00:04]} 11. Bh4 {[%emt 0:
00:01]} O-O {[%emt 0:00:04]} 12. Rad1 {[%emt 0:00:01]} Qc7 {[%emt 0:00:04]} 13.
Bg3 {[%emt 0:00:01]} b5 {[%emt 0:00:06]} 14. a3 {[%emt 0:00:02]} Bb7 {[%emt 0:
00:02]} 15. f3 {[%emt 0:00:11]} Rfd8 {[%emt 0:00:23]} 16. Rd2 {[%emt 0:00:01]}
Rac8 {[%emt 0:00:03]} 17. Rfd1 {[%emt 0:00:01]} Qb6 {[%emt 0:00:25]} 18. Kh1 {
[%emt 0:00:01]} Nxb3 {[%emt 0:00:14]} 19. Nxb3 {[%emt 0:00:27]} d5 {[%emt 0:00:
04]} 20. e5 {[%emt 0:00:09]} Nd7 {[%emt 0:00:01]} 21. Na2 {[%emt 0:01:13]} a5 {
[%emt 0:00:08]} 22. f4 {[%emt 0:00:01]} a4 {[%emt 0:00:08]} 23. Nd4 {[%emt 0:
00:01]} Ba6 {[%emt 0:00:08]} 24. Nb4 {[%emt 0:00:01]} Rc4 {[%emt 0:01:03]} 25.
c3 {[%emt 0:00:07]} Nc5 {[%emt 0:00:11]} 26. f5 {[%emt 0:00:13]} Bg5 {[%emt 0:
00:13]} 27. Rc2 {[%emt 0:00:11]} exf5 {[%emt 0:00:04]} 28. Nxf5 {[%emt 0:00:10]
} Re4 {[%emt 0:00:08]} 29. Qf3 {[%emt 0:00:03]} g6 {[%emt 0:00:09]} 30. Nd4 {
[%emt 0:00:11]} Bb7 {[%emt 0:00:04]} 31. Rf2 {[%emt 0:00:20]} Rd7 {[%emt 0:00:
02]} 32. Rdf1 {[%emt 0:00:20]} h5 {[%emt 0:00:03]} 33. Qd1 {[%emt 0:00:01]} Qc7
{[%emt 0:00:02]} 34. e6 {[%emt 0:00:01]} Nxe6 {[%emt 0:00:01]} 35. Bxc7 {
[%emt 0:00:01]} 1-0

[Event "FIDE Women World Blitz 2021"]
[Site "Warsaw"]
[Date "2021.12.30"]
[Round "15.4"]
[White "Kosteniuk, Alexandra"]
[Black "Vaishali R"]
[Result "1-0"]
[ECO "B22"]
[WhiteElo "2518"]
[BlackElo "2405"]
[Annotator "ChessBase"]
[PlyCount "123"]
[EventDate "2021.12.29"]
[EventType "swiss"]
[EventCountry "POL"]
[Tiebreak "Cut1 Buchholz"]
[SourceTitle "playchess.com"]
[Source "ChessBase"]
[SourceQuality "1"]
[TimeControl "180+2"]

1. e4 {[%emt 0:00:01]} c5 {[%emt 0:00:02]} 2. c3 {[%emt 0:00:02]} Nf6 {[%emt 0:
00:02]} 3. e5 {[%emt 0:00:01]} Nd5 {[%emt 0:00:02]} 4. Nf3 {[%emt 0:00:01]} d6
{[%emt 0:00:02]} 5. Bc4 {[%emt 0:00:10]} dxe5 {[%emt 0:00:23]} 6. Nxe5 {
[%emt 0:00:02]} e6 {[%emt 0:00:02]} 7. O-O {[%emt 0:00:10]} Bd6 {[%emt 0:00:05]
} 8. d4 {[%emt 0:00:11]} cxd4 {[%emt 0:00:02]} 9. cxd4 {[%emt 0:00:05]} Nc6 {
[%emt 0:00:01]} 10. Nxc6 {[%emt 0:00:07]} bxc6 {[%emt 0:00:02]} 11. Nc3 {
[%emt 0:00:09]} O-O {[%emt 0:00:22]} 12. Qh5 {[%emt 0:00:05]} Rb8 {[%emt 0:00:
39]} 13. Bd3 {[%emt 0:00:17]} f5 {[%emt 0:00:06]} 14. Ne2 {[%emt 0:00:13]} Bd7
{[%emt 0:00:20]} 15. b3 {[%emt 0:00:06]} Qc7 {[%emt 0:00:17]} 16. Bd2 {[%emt 0:
00:13]} Nf6 {[%emt 0:00:13]} 17. Qh4 {[%emt 0:00:10]} Nd5 {[%emt 0:00:06]} 18.
Rac1 {[%emt 0:00:08]} Rbe8 {[%emt 0:00:08]} 19. f4 {[%emt 0:00:08]} c5 {
[%emt 0:00:08]} 20. Qf2 {[%emt 0:00:02]} Rc8 {[%emt 0:00:05]} 21. Kh1 {[%emt 0:
00:24]} Qb6 {[%emt 0:00:02]} 22. Bc4 {[%emt 0:00:04]} Nf6 {[%emt 0:00:03]} 23.
Qe3 {[%emt 0:00:12]} Ne4 {[%emt 0:00:05]} 24. Be1 {[%emt 0:00:03]} Kh8 {
[%emt 0:00:08]} 25. d5 {[%emt 0:00:11]} exd5 {[%emt 0:00:09]} 26. Bxd5 {
[%emt 0:00:01]} Rce8 {[%emt 0:00:01]} 27. Qf3 {[%emt 0:00:01]} Bb5 {[%emt 0:00:
03]} 28. Rc2 {[%emt 0:00:03]} Qa6 {[%emt 0:00:06]} 29. Bc4 {[%emt 0:00:03]}
Bxc4 {[%emt 0:00:04]} 30. bxc4 {[%emt 0:00:02]} Rb8 {[%emt 0:00:02]} 31. Ng3 {
[%emt 0:00:10]} Qc6 {[%emt 0:00:04]} 32. Nxe4 {[%emt 0:00:04]} fxe4 {[%emt 0:
00:01]} 33. Qe3 {[%emt 0:00:01]} Rb1 {[%emt 0:00:05]} 34. Re2 {[%emt 0:00:05]}
Re8 {[%emt 0:00:05]} 35. g3 {[%emt 0:00:06]} h6 {[%emt 0:00:01]} 36. Kg2 {
[%emt 0:00:01]} Rd1 {[%emt 0:00:02]} 37. Bd2 {[%emt 0:00:11]} Rxf1 {[%emt 0:00:
02]} 38. Kxf1 {[%emt 0:00:00]} Qa4 {[%emt 0:00:02]} 39. Qb3 {[%emt 0:00:01]}
Qxb3 {[%emt 0:00:04]} 40. axb3 {[%emt 0:00:01]} Rb8 {[%emt 0:00:00]} 41. Re3 {
[%emt 0:00:00]} Kg8 {[%emt 0:00:03]} 42. Ke2 {[%emt 0:00:03]} Kf7 {[%emt 0:00:
02]} 43. Kd1 {[%emt 0:00:00]} Re8 {[%emt 0:00:02]} 44. Kc2 {[%emt 0:00:02]} h5
{[%emt 0:00:01]} 45. Re1 {[%emt 0:00:02]} Kg6 {[%emt 0:00:01]} 46. Be3 {
[%emt 0:00:01]} Re6 {[%emt 0:00:05]} 47. Ra1 {[%emt 0:00:01]} Bb8 {[%emt 0:00:
02]} 48. Bxc5 {[%emt 0:00:03]} e3 {[%emt 0:00:01]} 49. Re1 {[%emt 0:00:01]} h4
{[%emt 0:00:02]} 50. Rxe3 {[%emt 0:00:02]} Rxe3 {[%emt 0:00:02]} 51. Bxe3 {
[%emt 0:00:00]} Kf5 {[%emt 0:00:01]} 52. gxh4 {[%emt 0:00:04]} Kg4 {[%emt 0:00:
01]} 53. c5 {[%emt 0:00:02]} Kxh4 {[%emt 0:00:01]} 54. c6 {[%emt 0:00:00]} Kh3
{[%emt 0:00:03]} 55. f5 {[%emt 0:00:06]} Kg4 {[%emt 0:00:03]} 56. Bxa7 {
[%emt 0:00:03]} Bxh2 {[%emt 0:00:01]} 57. Bb6 {[%emt 0:00:01]} Kxf5 {[%emt 0:
00:02]} 58. c7 {[%emt 0:00:01]} Bxc7 {[%emt 0:00:02]} 59. Bxc7 {[%emt 0:00:01]}
g5 {[%emt 0:00:00]} 60. Kc3 {[%emt 0:00:02]} Ke6 {[%emt 0:00:01]} 61. Kc4 {
[%emt 0:00:01]} Kd7 {[%emt 0:00:01]} 62. Bg3 {[%emt 0:00:02]} 1-0

[Event "FIDE Women World Blitz 2021"]
[Site "Warsaw"]
[Date "2021.12.30"]
[Round "15.4"]
[White "Kubicka, Anna"]
[Black "Parol, Pola"]
[Result "1-0"]
[ECO "B20"]
[WhiteElo "2273"]
[BlackElo "1823"]
[Annotator "NA"]
[PlyCount "90"]
[EventDate "2021.12.29"]
[EventType "swiss"]
[EventCountry "POL"]
[Tiebreak "Cut1 Buchholz"]
[SourceTitle "playchess.com"]
[Source "ChessBase"]
[SourceQuality "1"]
[TimeControl "180+2"]

1. e4 {[%emt 0:00:01]} c5 {[%emt 0:00:00]} 2. Ne2 {[%emt 0:00:01]} d6 {[%emt 0:
00:04]} 3. g3 {[%emt 0:00:01]} Nc6 {[%emt 0:00:04]} 4. Bg2 {[%emt 0:00:01]} Nf6
{[%emt 0:00:04]} 5. O-O {[%emt 0:00:01]} g6 {[%emt 0:00:03]} 6. c3 {[%emt 0:00:
01]} e5 {[%emt 0:00:10]} 7. d4 {[%emt 0:00:01]} Qc7 {[%emt 0:00:04]} 8. h3 {
[%emt 0:00:03]} Bg7 {[%emt 0:00:02]} 9. Be3 {[%emt 0:00:01]} b6 {[%emt 0:00:21]
} 10. f4 {[%emt 0:00:01]} cxd4 {[%emt 0:00:13]} 11. cxd4 {[%emt 0:00:01]} O-O {
[%emt 0:00:07]} 12. fxe5 {[%emt 0:00:15]} dxe5 {[%emt 0:00:04]} 13. d5 {
[%emt 0:00:01]} Nb4 {[%emt 0:00:17]} 14. Nbc3 {[%emt 0:00:03]} Na6 {[%emt 0:00:
28]} 15. Rc1 {[%emt 0:00:06]} Qd8 {[%emt 0:00:05]} 16. Kh2 {[%emt 0:00:22]} Nd7
{[%emt 0:00:02]} 17. a3 {[%emt 0:00:03]} Nac5 {[%emt 0:00:06]} 18. b4 {[%emt 0:
00:02]} Nb7 {[%emt 0:00:02]} 19. Nb5 {[%emt 0:00:02]} Nf6 {[%emt 0:00:13]} 20.
Qd3 {[%emt 0:00:13]} Nd6 {[%emt 0:00:04]} 21. Nxd6 {[%emt 0:00:24]} Qxd6 {
[%emt 0:00:01]} 22. Rc6 {[%emt 0:00:02]} Qd8 {[%emt 0:00:10]} 23. Rfc1 {
[%emt 0:00:37]} Bd7 {[%emt 0:00:02]} 24. Rc7 {[%emt 0:00:05]} Ne8 {[%emt 0:00:
03]} 25. R7c2 {[%emt 0:00:30]} Nd6 {[%emt 0:00:01]} 26. Nc3 {[%emt 0:00:13]}
Rc8 {[%emt 0:00:05]} 27. a4 {[%emt 0:00:11]} Qe7 {[%emt 0:00:07]} 28. a5 {
[%emt 0:00:09]} Qd8 {[%emt 0:00:15]} 29. axb6 {[%emt 0:00:06]} axb6 {[%emt 0:
00:01]} 30. Ne2 {[%emt 0:00:13]} Rxc2 {[%emt 0:00:07]} 31. Qxc2 {[%emt 0:00:01]
} Nb5 {[%emt 0:00:08]} 32. Nc3 {[%emt 0:00:02]} Nd4 {[%emt 0:00:07]} 33. Qd1 {
[%emt 0:00:02]} Qe7 {[%emt 0:00:10]} 34. b5 {[%emt 0:00:08]} f5 {[%emt 0:00:04]
} 35. exf5 {[%emt 0:00:01]} gxf5 {[%emt 0:00:01]} 36. Bxd4 {[%emt 0:00:02]}
exd4 {[%emt 0:00:01]} 37. Ne2 {[%emt 0:00:01]} Qe3 {[%emt 0:00:05]} 38. Nf4 {
[%emt 0:00:03]} Be5 {[%emt 0:00:07]} 39. Qf1 {[%emt 0:00:04]} Ra8 {[%emt 0:00:
07]} 40. Re1 {[%emt 0:00:03]} Qd2 {[%emt 0:00:04]} 41. Rxe5 {[%emt 0:00:01]}
Ra2 {[%emt 0:00:02]} 42. Re7 {[%emt 0:00:02]} Bc8 {[%emt 0:00:03]} 43. Re8+ {
[%emt 0:00:01]} Kg7 44. Rxc8 d3 {[%emt 0:00:02]} 45. Rc7+ {[%emt 0:00:01]} Kf6
{[%emt 0:00:09]} 1-0

[Event "FIDE Women World Blitz 2021"]
[Site "Warsaw"]
[Date "2021.12.30"]
[Round "15.5"]
[White "Kulon, Klaudia"]
[Black "Goryachkina, Aleksandra"]
[Result "0-1"]
[ECO "E05"]
[WhiteElo "2328"]
[BlackElo "2604"]
[Annotator "ChessBase"]
[PlyCount "86"]
[EventDate "2021.12.29"]
[EventType "swiss"]
[EventCountry "POL"]
[Tiebreak "Cut1 Buchholz"]
[SourceTitle "playchess.com"]
[Source "ChessBase"]
[SourceQuality "1"]
[TimeControl "180+2"]

1. c4 {[%emt 0:00:00]} e6 {[%emt 0:00:04]} 2. g3 {[%emt 0:00:01]} d5 {[%emt 0:
00:02]} 3. Bg2 {[%emt 0:00:01]} Nf6 {[%emt 0:00:01]} 4. Nf3 {[%emt 0:00:01]}
Be7 {[%emt 0:00:02]} 5. O-O {[%emt 0:00:02]} O-O {[%emt 0:00:01]} 6. d4 {
[%emt 0:00:01]} dxc4 {[%emt 0:00:03]} 7. Qc2 {[%emt 0:00:01]} a6 {[%emt 0:00:
01]} 8. a4 {[%emt 0:00:01]} Bd7 {[%emt 0:00:03]} 9. Qxc4 {[%emt 0:00:01]} Bc6 {
[%emt 0:00:01]} 10. Nc3 {[%emt 0:00:05]} b5 {[%emt 0:00:10]} 11. Qb3 {[%emt 0:
00:09]} b4 {[%emt 0:00:02]} 12. Nb1 {[%emt 0:00:32]} Bd5 {[%emt 0:00:06]} 13.
Qd1 {[%emt 0:00:00]} Nbd7 {[%emt 0:00:06]} 14. Bf4 {[%emt 0:00:02]} c5 {
[%emt 0:00:05]} 15. Nbd2 {[%emt 0:00:09]} Rc8 {[%emt 0:00:12]} 16. Re1 {
[%emt 0:00:19]} cxd4 {[%emt 0:00:08]} 17. Nxd4 {[%emt 0:00:03]} Bxg2 {[%emt 0:
00:02]} 18. Kxg2 {[%emt 0:00:02]} e5 {[%emt 0:00:01]} 19. Nf5 {[%emt 0:00:28]}
exf4 {[%emt 0:00:03]} 20. Rc1 {[%emt 0:00:05]} Rxc1 {[%emt 0:00:08]} 21. Qxc1 {
[%emt 0:00:01]} g6 {[%emt 0:00:09]} 22. Nxe7+ {[%emt 0:00:15]} Qxe7 {[%emt 0:
00:01]} 23. Qc6 {[%emt 0:00:01]} fxg3 {[%emt 0:00:07]} 24. hxg3 {[%emt 0:00:01]
} Qe5 {[%emt 0:00:32]} 25. Qxa6 {[%emt 0:00:10]} Qxb2 {[%emt 0:00:03]} 26. Nf3
{[%emt 0:00:01]} Qc3 {[%emt 0:00:06]} 27. Rb1 {[%emt 0:00:01]} Rb8 {[%emt 0:00:
02]} 28. Qd6 {[%emt 0:00:19]} b3 {[%emt 0:00:03]} 29. a5 {[%emt 0:00:00]} Qxa5
{[%emt 0:00:05]} 30. Rb2 {[%emt 0:00:03]} Qc3 {[%emt 0:00:06]} 31. Qa3 {
[%emt 0:00:01]} Qb4 {[%emt 0:00:09]} 32. Qa7 {[%emt 0:00:03]} Qb6 {[%emt 0:00:
08]} 33. Qa3 {[%emt 0:00:02]} Nc5 {[%emt 0:00:02]} 34. Nd4 {[%emt 0:00:06]}
Nfe4 {[%emt 0:00:04]} 35. e3 {[%emt 0:00:03]} Nd6 {[%emt 0:00:02]} 36. Rb1 {
[%emt 0:00:06]} Nc4 {[%emt 0:00:03]} 37. Qc1 {[%emt 0:00:00]} Ne5 {[%emt 0:00:
06]} 38. Qc3 {[%emt 0:00:04]} b2 {[%emt 0:00:05]} 39. f4 {[%emt 0:00:05]} Ned3
{[%emt 0:00:03]} 40. Nf3 {[%emt 0:00:05]} Qb3 {[%emt 0:00:07]} 41. Qf6 {
[%emt 0:00:04]} Qc2+ {[%emt 0:00:04]} 42. Kh3 {[%emt 0:00:01]} Qxb1 {[%emt 0:
00:06]} 43. Ng5 {[%emt 0:00:00]} Qh1+ {[%emt 0:00:03]} 0-1

[Event "FIDE Women World Blitz 2021"]
[Site "Warsaw"]
[Date "2021.12.30"]
[Round "15.5"]
[White "Wikar, Martyna"]
[Black "Bartel, Marta"]
[Result "1-0"]
[ECO "B51"]
[WhiteElo "1899"]
[BlackElo "2192"]
[Annotator "NA"]
[PlyCount "145"]
[EventDate "2021.12.29"]
[EventType "swiss"]
[EventCountry "POL"]
[Tiebreak "Cut1 Buchholz"]
[SourceTitle "playchess.com"]
[Source "ChessBase"]
[SourceQuality "1"]
[TimeControl "180+2"]

1. e4 {[%emt 0:00:01]} c5 {[%emt 0:00:01]} 2. Nf3 {[%emt 0:00:02]} Nc6 {
[%emt 0:00:00]} 3. Bb5 {[%emt 0:00:01]} d6 {[%emt 0:00:01]} 4. O-O {[%emt 0:00:
07]} Bd7 {[%emt 0:00:02]} 5. Re1 {[%emt 0:00:04]} Nf6 {[%emt 0:00:05]} 6. h3 {
[%emt 0:00:03]} a6 {[%emt 0:00:02]} 7. Bf1 {[%emt 0:00:04]} g6 {[%emt 0:00:01]}
8. c3 {[%emt 0:00:01]} Bg7 {[%emt 0:00:04]} 9. d4 {[%emt 0:00:01]} cxd4 {
[%emt 0:00:17]} 10. cxd4 {[%emt 0:00:02]} e5 {[%emt 0:00:05]} 11. Nc3 {[%emt 0:
00:17]} O-O {[%emt 0:00:02]} 12. Be3 {[%emt 0:00:26]} b5 {[%emt 0:00:18]} 13.
a3 {[%emt 0:00:34]} Re8 {[%emt 0:00:14]} 14. dxe5 {[%emt 0:00:15]} dxe5 {
[%emt 0:00:02]} 15. Rc1 {[%emt 0:00:07]} Na5 {[%emt 0:00:29]} 16. Nd5 {[%emt 0:
00:07]} Nxd5 {[%emt 0:00:04]} 17. Qxd5 {[%emt 0:00:09]} Be6 {[%emt 0:00:48]}
18. Qxd8 {[%emt 0:00:02]} Rexd8 {[%emt 0:00:03]} 19. Bb6 {[%emt 0:00:16]} Nb3 {
[%emt 0:00:01]} 20. Bxd8 {[%emt 0:00:05]} Nxc1 {[%emt 0:00:02]} 21. Bc7 {
[%emt 0:00:03]} Nb3 {[%emt 0:00:07]} 22. Bxe5 {[%emt 0:00:03]} Rc8 {[%emt 0:00:
09]} 23. Bd3 {[%emt 0:00:15]} Bxe5 {[%emt 0:00:15]} 24. Nxe5 {[%emt 0:00:01]}
Kg7 {[%emt 0:00:01]} 25. Kh2 {[%emt 0:00:08]} Nc5 {[%emt 0:00:01]} 26. Bb1 {
[%emt 0:00:03]} Na4 {[%emt 0:00:02]} 27. b4 {[%emt 0:00:04]} Rc3 {[%emt 0:00:
11]} 28. Re3 {[%emt 0:00:03]} Rxe3 {[%emt 0:00:09]} 29. fxe3 {[%emt 0:00:01]}
Nc3 {[%emt 0:00:04]} 30. Bc2 {[%emt 0:00:03]} Kf6 {[%emt 0:00:07]} 31. Nc6 {
[%emt 0:00:03]} Bc8 {[%emt 0:00:02]} 32. Na5 {[%emt 0:00:10]} Ke5 {[%emt 0:00:
04]} 33. Nc6+ {[%emt 0:00:01]} Kd6 {[%emt 0:00:03]} 34. Nd4 {[%emt 0:00:03]}
Ke5 {[%emt 0:00:02]} 35. Nf3+ {[%emt 0:00:04]} Kf6 {[%emt 0:00:03]} 36. Kg3 {
[%emt 0:00:02]} h6 {[%emt 0:00:01]} 37. e5+ {[%emt 0:00:02]} Ke6 {[%emt 0:00:
02]} 38. h4 {[%emt 0:00:01]} Bb7 {[%emt 0:00:02]} 39. Kf4 {[%emt 0:00:04]} Ne2+
{[%emt 0:00:03]} 40. Kg4 {[%emt 0:00:02]} Bxf3+ {[%emt 0:00:04]} 41. Kxf3 {
[%emt 0:00:03]} Nc3 {[%emt 0:00:01]} 42. Kf4 {[%emt 0:00:02]} Nd5+ {[%emt 0:00:
02]} 43. Ke4 {[%emt 0:00:01]} Ne7 {[%emt 0:00:01]} 44. Bb3+ {[%emt 0:00:02]}
Kd7 {[%emt 0:00:01]} 45. Bxf7 {[%emt 0:00:02]} g5 {[%emt 0:00:01]} 46. hxg5 {
[%emt 0:00:01]} hxg5 {[%emt 0:00:01]} 47. g4 {[%emt 0:00:02]} Nc6 {[%emt 0:00:
02]} 48. Kd5 {[%emt 0:00:02]} Ne7+ {[%emt 0:00:02]} 49. Kc5 {[%emt 0:00:01]}
Nc8 {[%emt 0:00:02]} 50. Bg6 {[%emt 0:00:04]} Na7 {[%emt 0:00:07]} 51. Bf5+ {
[%emt 0:00:02]} Kc7 {[%emt 0:00:02]} 52. e6 {[%emt 0:00:02]} Nc6 {[%emt 0:00:
00]} 53. e4 {[%emt 0:00:03]} Ne7 {[%emt 0:00:01]} 54. Kd4 {[%emt 0:00:07]} Kd6
{[%emt 0:00:02]} 55. e5+ {[%emt 0:00:02]} Kc6 {[%emt 0:00:03]} 56. Be4+ {
[%emt 0:00:01]} Kb6 {[%emt 0:00:02]} 57. Bd3 {[%emt 0:00:04]} Kc6 {[%emt 0:00:
01]} 58. Ke4 {[%emt 0:00:02]} Kb6 {[%emt 0:00:01]} 59. Bc2 {[%emt 0:00:02]} Kc6
{[%emt 0:00:00]} 60. a4 {[%emt 0:00:01]} bxa4 {[%emt 0:00:06]} 61. Bxa4+ {
[%emt 0:00:01]} Kb6 {[%emt 0:00:01]} 62. Kd4 {[%emt 0:00:01]} Kc7 {[%emt 0:00:
03]} 63. Kc5 {[%emt 0:00:01]} Nc8 {[%emt 0:00:03]} 64. Bd7 {[%emt 0:00:05]} Ne7
{[%emt 0:00:01]} 65. Be8 {[%emt 0:00:02]} Nc8 {[%emt 0:00:01]} 66. Bd7 {
[%emt 0:00:05]} Ne7 {[%emt 0:00:01]} 67. Ba4 {[%emt 0:00:04]} Nc8 {[%emt 0:00:
02]} 68. Bc2 {[%emt 0:00:02]} Ne7 {[%emt 0:00:04]} 69. Bd3 {[%emt 0:00:01]} Kb7
{[%emt 0:00:10]} 70. Kd6 {[%emt 0:00:01]} Nc8+ {[%emt 0:00:02]} 71. Kd7 {
[%emt 0:00:02]} Nb6+ {[%emt 0:00:01]} 72. Kd8 {[%emt 0:00:01]} Nd5 {[%emt 0:00:
03]} 73. e7 {[%emt 0:00:02]} 1-0